bitfinex/quotes_SOLUSD_20240604
["timestamp","ask_amount","ask_price","bid_price","bid_amount"]
[1717466415815,2.2218,166.53,166.5,8.88549021]
[1717466416027,7.2118,166.53,166.5,8.88549021]
[1717466416550,7.2118,166.53,166.5,11.10769021]
[1717466417137,7.2118,166.53,166.51,8.88549021]
[1717466417531,4.99,166.53,166.5,11.10759021]
[1717466417737,4.99,166.53,166.51,2.222]
[1717466418121,4.99,166.53,166.51,11.10749021]
[1717466418322,4.99,166.53,166.51,8.88549021]
[1717466419242,4.99,166.52,166.51,8.88549021]
[1717466419944,4.99,166.52,166.5,2.2221]
[1717466420141,4.99,166.52,166.51,8.88835491]
[1717466422149,4.99,166.52,166.5,8.88835491]
[1717466422448,4.99,166.51,166.5,8.88835491]
[1717466422631,7.212,166.51,166.5,8.88835491]
[1717466423238,7.212,166.51,166.49,8.88835491]
[1717466423439,4.99,166.5,166.49,8.88835491]
[1717466423847,7.2122,166.5,166.49,8.88835491]
[1717466424043,7.2122,166.5,166.47,8.88835491]
[1717466424336,4.99,166.49,166.47,11.11085491]
[1717466425516,4.99,166.49,166.47,2.2225]
[1717466425719,4.99,166.49,166.47,11.11085491]
[1717466426142,4.99,166.49,166.47,2.2225]
[1717466427138,4.99,166.49,166.48,2.2224]
[1717466427347,4.99,166.5,166.48,2.2224]
[1717466428452,2.2219,166.52,166.48,2.2224]
[1717466428635,4.99,166.51,166.48,2.2224]
[1717466429131,7.2121,166.51,166.47,11.11479458]
[1717466429318,4.99,166.5,166.47,11.11479458]
[1717466429719,7.2121,166.51,166.47,11.11479458]
[1717466430024,7.2121,166.51,166.48,2.2224]
[1717466430553,4.99,166.51,166.48,2.2224]
[1717466431319,4.99,166.51,166.49,2.40143165]
[1717466432341,2.2219,166.52,166.49,2.40143165]
[1717466432554,4.99,166.51,166.49,2.40143165]
[1717466433330,4.99,166.51,166.48,2.2224]
[1717466433646,4.99,166.51,166.47,8.89229458]
[1717466433647,4.4436,166.53,166.47,8.89229458]
[1717466433850,4.4436,166.53,166.43,182.5842]
[1717466433851,4.99,166.49,166.46,2.2226]
[1717466434044,7.2122,166.5,166.46,2.2226]
[1717466434523,4.99,166.49,166.46,2.2226]
[1717466435524,2.2221,166.51,166.47,2.2225]
[1717466435726,4.99,166.5,166.47,2.2225]
[1717466440262,4.99,166.49,166.47,2.2225]
[1717466440426,4.99,166.49,166.46,2.2226]
[1717466442051,4.99,166.49,166.47,2.2225]
[1717466444441,4.99,166.49,166.46,2.2226]
[1717466445163,4.99,166.49,166.47,2.2226]
[1717466446534,4.99,166.48,166.46,2.2227]
[1717466446739,4.99,166.47,166.45,8.89392952]
[1717466447041,4.99,166.46,166.44,2.2229]
[1717466447435,4.99,166.45,166.43,2.2231]
[1717466447639,4.99,166.45,166.42,11.11712952]
[1717466448351,4.99,166.45,166.42,2.2232]
[1717466450833,4.99,166.44,166.42,2.2232]
[1717466451061,4.99,166.43,166.41,8.89392952]
[1717466451548,4.99,166.43,166.4,11.11732952]
[1717466452063,4.99,166.43,166.41,8.89392952]
[1717466452260,2.2229,166.45,166.41,2.2234]
[1717466452441,4.99,166.43,166.41,2.2234]
[1717466453842,2.2228,166.46,166.41,2.2234]
[1717466454154,4.99,166.44,166.41,2.2234]
[1717466455243,4.99,166.43,166.4,2.2234]
[1717466455738,4.99,166.42,166.4,2.2234]
[1717466456844,2.2229,166.45,166.4,2.2234]
[1717466457043,4.99,166.42,166.4,2.2234]
[1717466457255,4.99,166.42,166.35,138.89434465]
[1717466457556,7.2131,166.44,166.39,2.2235]
[1717466457858,4.99,166.43,166.4,2.2235]
[1717466458649,4.99,166.42,166.39,2.2236]
[1717466459051,4.99,166.41,166.39,2.2236]
[1717466459971,4.99,166.42,166.39,2.2236]
[1717466460655,4.99,166.44,166.4,2.2235]
[1717466461578,2.2227,166.46,166.4,120.0]
[1717466461807,2.2226,166.47,166.41,0.17]
[1717466462092,7.2126,166.47,166.43,2.223]
[1717466462646,4.99,166.47,166.43,2.223]
[1717466462840,2.2227,166.46,166.41,2.2232]
[1717466463061,7.2127,166.46,166.41,2.2233]
[1717466463261,2.2227,166.46,166.41,2.2233]
[1717466464572,2.2228,166.45,166.41,2.2233]
[1717466465352,4.99,166.43,166.41,2.2233]
[1717466465562,4.99,166.42,166.4,11.13096623]
[1717466465767,4.99,166.42,166.4,8.90746623]
[1717466465981,4.99,166.43,166.4,11.13096623]
[1717466466172,7.213,166.44,166.4,11.13096623]
[1717466466577,4.99,166.43,166.4,11.13096623]
[1717466466790,4.99,166.43,166.4,8.90746623]
[1717466467084,2.223,166.44,166.4,8.90746623]
[1717466467085,4.99,166.42,166.4,8.90746623]
[1717466471081,2.2235,166.4,166.39,8.90746623]
[1717466471388,4.99,166.4,166.39,8.90746623]
[1717466472069,2.2232,166.43,166.39,11.13106623]
[1717466472376,4.99,166.42,166.39,8.90746623]
[1717466472686,4.99,166.4,166.38,11.13116623]
[1717466472883,4.99,166.39,166.38,8.90746623]
[1717466474604,4.99,166.39,166.37,2.2238]
[1717466475705,4.99,166.39,166.36,2.224]
[1717466476596,4.99,166.39,166.38,8.91006712]
[1717466477400,2.2234,166.41,166.38,8.91006712]
[1717466477580,2.2234,166.41,166.39,45.0]
[1717466477785,4.99,166.4,166.39,45.0]
[1717466477997,4.3042,166.45,166.39,45.0]
[1717466478198,4.4456,166.46,166.39,45.0]
[1717466478378,4.99,166.42,166.39,56.13366712]
[1717466478902,7.2133,166.42,166.39,53.91006712]
[1717466479112,7.2133,166.42,166.39,45.0]
[1717466479275,7.2133,166.42,166.39,53.91006712]
[1717466479468,7.2133,166.42,166.39,45.0]
[1717466480723,4.99,166.42,166.39,47.2236]
[1717466480896,4.99,166.42,166.39,53.7476]
[1717466481095,20.0041,166.47,166.39,53.7476]
[1717466481332,4.99,166.42,166.39,51.524]
[1717466481485,7.2131,166.43,166.39,51.524]
[1717466481691,4.99,166.42,166.39,45.0]
[1717466482519,7.2132,166.42,166.39,45.0]
[1717466483302,4.99,166.42,166.39,45.0]
[1717466484900,7.2133,166.42,166.39,45.0]
[1717466486215,4.99,166.41,166.39,45.0]
[1717466487016,4.99,166.4,166.38,8.91006712]
[1717466487218,4.99,166.39,166.38,8.91006712]
[1717466487406,4.99,166.39,166.37,8.91006712]
[1717466487595,4.99,166.39,166.36,11.13406712]
[1717466488002,4.99,166.4,166.36,11.13406712]
[1717466488392,2.2234,166.41,166.37,47.2239]
[1717466488617,4.99,166.41,166.37,53.3041]
[1717466489119,7.2134,166.41,166.37,53.3041]
[1717466489496,7.2134,166.41,166.37,51.0802]
[1717466489802,7.2135,166.4,166.37,45.0]
[1717466490695,4.99,166.38,166.37,45.0]
[1717466491815,2.2236,166.4,166.37,45.0]
[1717466491816,4.99,166.39,166.37,45.0]
[1717466493805,7.2136,166.4,166.37,45.0]
[1717466494713,2.2236,166.4,166.37,45.0]
[1717466494914,7.2136,166.4,166.37,45.0]
[1717466495731,2.2236,166.4,166.37,45.0]
[1717466495941,7.2136,166.4,166.37,45.0]
[1717466497842,0.60106991,166.38,166.37,45.0]
[1717466503033,0.60106991,166.38,166.37,47.2239]
[1717466503741,0.60106991,166.38,166.37,45.0]
[1717466504114,5.59106991,166.38,166.37,45.0]
[1717466504340,0.60106991,166.38,166.37,45.0]
[1717466505019,5.59106991,166.38,166.37,45.0]
[1717466505220,5.59106991,166.38,166.36,45.0]
[1717466505451,0.60106991,166.38,166.36,45.0]
[1717466505822,5.59106991,166.38,166.35,8.91675324]
[1717466506037,0.60106991,166.38,166.35,8.91675324]
[1717466506234,5.59106991,166.38,166.35,8.91675324]
[1717466506441,5.59106991,166.38,166.34,11.14095324]
[1717466506622,5.59106991,166.38,166.35,2.2241]
[1717466507321,5.59106991,166.38,166.35,47.2241]
[1717466507534,0.60106991,166.38,166.35,47.2241]
[1717466508130,5.59106991,166.38,166.35,47.2241]
[1717466508316,0.60106991,166.38,166.35,47.2241]
[1717466509537,0.60106991,166.38,166.35,56.14085324]
[1717466512347,0.60106991,166.38,166.36,8.91675324]
[1717466512525,0.60106991,166.38,166.37,45.0]
[1717466513347,5.59106991,166.38,166.37,45.0]
[1717466514030,5.59106991,166.38,166.36,45.0]
[1717466514336,5.59106991,166.38,166.36,53.91675324]
[1717466514829,5.59106991,166.38,166.36,45.0]
[1717466515231,5.59106991,166.38,166.36,53.91675324]
[1717466515939,5.59106991,166.38,166.36,56.14075324]
[1717466516334,5.59106991,166.38,166.37,8.91675324]
[1717466516538,5.59106991,166.38,166.37,53.91675324]
[1717466516738,0.60106991,166.38,166.37,53.91675324]
[1717466516957,5.59106991,166.38,166.37,45.0]
[1717466517228,0.60106991,166.38,166.37,45.0]
[1717466517430,0.60106991,166.38,166.37,53.91675324]
[1717466525261,0.60106991,166.38,166.37,53.91727881]
[1717466525960,5.59106991,166.38,166.37,8.91727881]
[1717466526143,7.81486991,166.38,166.37,8.91727881]
[1717466526342,5.59106991,166.38,166.37,8.91727881]
[1717466526955,5.59106991,166.38,166.36,8.91727881]
[1717466527273,0.60106991,166.38,166.37,8.91727881]
[1717466527457,0.60106991,166.38,166.37,45.0]
[1717466527963,5.59106991,166.38,166.37,45.0]
[1717466529045,0.60106991,166.38,166.37,45.0]
[1717466530672,0.60106991,166.38,166.37,53.92045259]
[1717466530983,0.60106991,166.38,166.37,45.0]
[1717466531342,0.60106991,166.38,166.37,53.92045259]
[1717466532976,5.59106991,166.38,166.37,53.92045259]
[1717466534375,7.81486991,166.38,166.37,53.92045259]
[1717466534756,7.81486991,166.38,166.37,8.92045259]
[1717466534947,12.26246991,166.38,166.37,8.92045259]
[1717466535275,2.2239,166.37,166.36,8.92045259]
[1717466535446,2.224,166.36,166.35,8.92045259]
[1717466535941,2.224,166.36,166.32,2.2246]
[1717466537069,2.224,166.36,166.31,2.2246]
[1717466537772,0.60106991,166.32,166.31,2.2246]
[1717466538149,0.60106991,166.32,166.31,8.5536]
[1717466538351,0.60106991,166.32,166.31,53.5536]
[1717466539471,0.60106991,166.32,166.31,47.2246]
[1717466539781,0.60106991,166.32,166.31,2.2246]
[1717466542181,0.60106991,166.32,166.31,128.2656]
[1717466542354,0.60106991,166.32,166.31,53.2656]
[1717466542561,0.60106991,166.32,166.31,47.2246]
[1717466542770,0.60106991,166.32,166.31,2.2246]
[1717466562592,0.60106991,166.32,166.3,45.8084986]
[1717466562885,0.60106991,166.32,166.3,0.8084986]
[1717466563280,0.60106991,166.32,166.3,3.0332986]
[1717466564303,0.60106991,166.32,166.3,0.8084986]
[1717466565907,0.60106991,166.32,166.3,3.0332986]
[1717466567397,0.60106991,166.32,166.31,8.93106131]
[1717466567574,0.60106991,166.32,166.31,53.93106131]
[1717466572294,0.57100648,166.32,166.31,53.93106131]
[1717466577390,0.57100648,166.32,166.31,45.0]
[1717466590008,0.57100648,166.32,166.3,0.8084986]
[1717466590188,5.56100648,166.32,166.3,0.8084986]
[1717466590387,7.78570648,166.32,166.3,0.8084986]
[1717466593607,5.56100648,166.32,166.3,0.8084986]
[1717466595090,7.2147,166.31,166.3,0.8084986]
[1717466595292,7.2147,166.31,166.3,9.74068855]
[1717466598297,7.2147,166.31,166.3,0.8084986]
[1717466608298,16.1137,166.31,166.3,0.8084986]
[1717466608599,27.2374,166.31,166.3,0.8084986]
[1717466609017,20.5632,166.31,166.3,0.8084986]
[1717466609333,27.2374,166.31,166.3,0.8084986]
[1717466609518,24.8674,166.31,166.3,0.8084986]
[1717466610031,20.5632,166.31,166.3,0.8084986]
[1717466613605,31.5416,166.31,166.3,0.8084986]
[1717466614205,27.2374,166.31,166.3,0.8084986]
[1717466621216,15.5732,166.31,166.3,0.8084986]
[1717466621531,11.6642,166.31,166.3,0.8084986]
[1717466625636,6.6742,166.31,166.3,0.8084986]
[1717466625845,11.6642,166.31,166.3,0.8084986]
[1717466631747,2.2251,166.28,166.25,6.1377]
[1717466632038,2.2251,166.28,166.26,45.0]
[1717466633138,2.2251,166.28,166.26,51.0339]
[1717466638348,7.2151,166.28,166.26,6.0339]
[1717466638644,7.2151,166.28,166.25,9.79863823]
[1717466639625,2.2251,166.28,166.25,12.02413823]
[1717466639947,4.99,166.27,166.26,45.0]
[1717466640427,4.99,166.27,166.26,53.92700581]
[1717466642052,4.99,166.27,166.26,45.0]
[1717466642347,4.99,166.27,166.26,53.92602488]
[1717466643529,2.2251,166.28,166.26,53.92602488]
[1717466643852,2.225,166.29,166.26,53.92602488]
[1717466646757,2.225,166.29,166.26,54.79659068]
[1717466649157,2.225,166.29,166.27,8.92602488]
[1717466650838,7.215,166.29,166.28,45.0]
[1717466651738,2.2249,166.3,166.28,45.0]
[1717466651945,2.2248,166.31,166.29,2.40501637]
[1717466652147,7.2148,166.31,166.29,2.40501637]
[1717466653152,2.2248,166.3,166.29,2.40501637]
[1717466656152,2.2248,166.31,166.29,2.40501637]
[1717466656351,7.2148,166.31,166.29,8.71711637]
[1717466656553,7.2148,166.31,166.3,45.0]
[1717466657849,2.2248,166.31,166.3,45.0]
[1717466658035,7.2148,166.31,166.3,45.0]
[1717466659443,2.2249,166.3,166.29,45.0]
[1717466659747,4.99,166.3,166.29,45.0]
[1717466659952,7.2148,166.31,166.29,45.0]
[1717466660154,2.2248,166.3,166.29,45.0]
[1717466661070,7.2148,166.3,166.29,45.0]
[1717466665458,7.2148,166.3,166.29,53.92602488]
[1717466668354,0.57100648,166.32,166.29,53.92602488]
[1717466668355,0.57100648,166.32,166.3,22.2594]
[1717466668547,0.57100648,166.32,166.31,51.014]
[1717466668973,0.57100648,166.32,166.31,60.8630873]
[1717466669149,0.57100648,166.32,166.31,63.0877873]
[1717466669343,0.57100648,166.32,166.31,60.8630873]
[1717466670879,0.57100648,166.32,166.31,51.014]
[1717466672282,0.57100648,166.32,166.31,68.5422]
[1717466672972,0.57100648,166.32,166.31,66.3175]
[1717466673386,0.57100648,166.32,166.31,68.5422]
[1717466676557,0.57100648,166.32,166.31,51.014]
[1717466677171,0.57100648,166.32,166.31,51.067755]
[1717466677377,0.57100648,166.32,166.31,53.292455]
[1717466677577,0.57100648,166.32,166.31,51.067755]
[1717466677777,0.57100648,166.32,166.31,0.053755]
[1717466677990,7.78560648,166.32,166.31,0.053755]
[1717466678271,12.23480648,166.32,166.31,0.053755]
[1717466680564,7.78560648,166.32,166.31,0.053755]
[1717466693886,2.79560648,166.32,166.31,0.053755]
[1717466694096,7.78560648,166.32,166.31,0.053755]
[1717466702009,2.79560648,166.32,166.31,0.053755]
[1717466702300,7.78560648,166.32,166.31,0.053755]
[1717466702974,5.56100648,166.32,166.31,0.053755]
[1717466704902,0.57100648,166.32,166.31,22.640355]
[1717466705082,0.57100648,166.32,166.31,77.348755]
[1717466705283,0.57100648,166.32,166.31,86.26986816]
[1717466705892,0.57100648,166.32,166.31,78.27159351]
[1717466706206,0.57100648,166.32,166.31,71.59739351]
[1717466706626,0.57100648,166.32,166.31,66.60739351]
[1717466706782,0.57100648,166.32,166.31,62.15789351]
[1717466708788,0.57100648,166.32,166.31,67.14789351]
[1717466710395,0.57100648,166.32,166.31,71.59739351]
[1717466712418,0.57100648,166.32,166.31,89.62739351]
[1717466712793,0.57100648,166.32,166.31,96.30159351]
[1717466714102,0.57100648,166.32,166.31,105.20059351]
[1717466714289,4.99,166.4,166.36,120.0]
[1717466714617,2.2234,166.41,166.37,6.6203]
[1717466714820,7.2134,166.41,166.37,6.6203]
[1717466715624,2.2233,166.42,166.37,8.8441]
[1717466715803,6.6677,166.48,166.38,120.0]
[1717466716003,7.213,166.44,166.4,6.5048]
[1717466716597,4.99,166.43,166.4,6.5048]
[1717466716810,7.2131,166.43,166.4,6.5048]
[1717466719409,2.2231,166.43,166.4,6.5048]
[1717466719609,7.2131,166.43,166.4,6.5048]
[1717466719992,4.99,166.43,166.4,6.5048]
[1717466721990,2.2229,166.45,166.4,128.7283]
[1717466722204,4.99,166.44,166.4,128.7283]
[1717466722713,4.99,166.44,166.4,128.782055]
[1717466723016,7.213,166.44,166.4,8.782055]
[1717466723414,4.99,166.43,166.4,8.782055]
[1717466723599,7.2131,166.43,166.4,0.053755]
[1717466723800,4.99,166.42,166.4,0.053755]
[1717466724201,4.99,166.41,166.4,0.053755]
[1717466724928,7.2134,166.41,166.4,0.053755]
[1717466725510,2.2234,166.41,166.4,0.053755]
[1717466725727,7.2134,166.41,166.4,0.053755]
[1717466726114,4.99,166.41,166.4,0.053755]
[1717466727010,7.2134,166.41,166.4,0.053755]
[1717466728798,4.99,166.41,166.4,0.053755]
[1717466734333,4.99,166.42,166.4,0.053755]
[1717466734635,4.99,166.43,166.4,0.053755]
[1717466734941,7.213,166.44,166.4,8.305955]
[1717466735433,6.6657,166.53,166.42,21.446]
[1717466735616,2.2223,166.49,166.45,2.2227]
[1717466735817,4.99,166.48,166.44,2.2229]
[1717466736434,2.2222,166.5,166.45,2.2228]
[1717466736634,4.99,166.48,166.45,2.2228]
[1717466736810,4.99,166.49,166.45,2.2228]
[1717466737639,4.99,166.49,166.45,2.276555]
[1717466738139,4.99,166.49,166.45,3.47641381]
[1717466738349,4.99,166.49,166.46,1.20020495]
[1717466738733,4.99,166.48,166.45,0.053755]
[1717466738928,4.99,166.47,166.45,0.053755]
[1717466739323,4.99,166.46,166.45,0.053755]
[1717466741526,7.2127,166.46,166.45,0.053755]
[1717466742245,11.6582,166.46,166.45,0.053755]
[1717466743339,31.5216,166.46,166.45,0.053755]
[1717466743635,2.2233,166.42,166.37,2.2238]
[1717466743858,4.99,166.39,166.37,2.2238]
[1717466744236,4.99,166.39,166.38,2.2238]
[1717466744562,4.99,166.4,166.38,2.2238]
[1717466745624,2.2232,166.42,166.38,2.2238]
[1717466745946,4.99,166.4,166.38,2.2238]
[1717466746128,4.99,166.41,166.38,2.2238]
[1717466746436,4.99,166.41,166.39,2.2236]
[1717466747224,4.99,166.41,166.39,8.8399]
[1717466747417,4.99,166.41,166.39,6.6163]
[1717466748243,4.99,166.42,166.39,6.6163]
[1717466748819,4.99,166.41,166.39,6.6163]
[1717466749955,4.99,166.41,166.38,2.2237]
[1717466750257,7.2135,166.4,166.36,11.14435683]
[1717466750460,4.99,166.38,166.36,2.224]
[1717466750833,4.99,166.39,166.36,2.224]
[1717466751747,2.2234,166.41,166.37,2.2239]
[1717466751938,4.99,166.39,166.37,2.2239]
[1717466753350,4.99,166.4,166.37,2.2239]
[1717466754540,7.2135,166.4,166.36,11.14435683]
[1717466755078,4.99,166.39,166.36,11.14435683]
[1717466755478,4.99,166.39,166.36,2.224]
[1717466756866,4.99,166.39,166.37,2.2239]
[1717466760445,2.2234,166.41,166.37,2.2239]
[1717466760780,4.99,166.4,166.38,2.2237]
[1717466761080,4.99,166.4,166.37,2.2238]
[1717466761779,4.99,166.4,166.38,2.2237]
[1717466762994,2.2233,166.42,166.38,2.2237]
[1717466763203,4.99,166.4,166.38,2.2237]
[1717466763886,4.99,166.4,166.37,6.5914]
[1717466764073,11.1132,166.47,166.37,16.0663]
[1717466764402,4.99,166.43,166.39,6.6467]
[1717466764571,4.99,166.43,166.4,6.6467]
[1717466764772,4.4447,166.49,166.43,2.2231]
[1717466764971,30.9309,166.5,166.38,8.91536024]
[1717466764972,13.3419,166.39,166.38,8.91536024]
[1717466765176,2.2243,166.34,166.29,8.8716]
[1717466765381,2.2245,166.33,166.3,0.92311066]
[1717466765686,2.2245,166.33,166.29,8.92600774]
[1717466765872,2.2245,166.33,166.28,3.0419108]
[1717466766072,4.4476,166.38,166.28,0.8168108]
[1717466766272,2.2243,166.34,166.3,2.2248]
[1717466766482,2.2242,166.35,166.3,2.2248]
[1717466766798,4.99,166.31,166.3,2.2248]
[1717466766995,4.99,166.31,166.29,2.2249]
[1717466767373,4.99,166.3,166.29,2.2249]
[1717466767884,4.99,166.31,166.3,2.2248]
[1717466768277,2.2241,166.36,166.31,2.2247]
[1717466768573,2.224,166.37,166.32,2.2245]
[1717466768788,4.99,166.34,166.32,2.2245]
[1717466768977,2.224,166.37,166.32,2.2245]
[1717466769183,4.99,166.34,166.32,2.2245]
[1717466769793,4.99,166.34,166.31,2.2247]
[1717466769992,4.99,166.34,166.3,2.2248]
[1717466770195,7.2145,166.33,166.29,2.225]
[1717466770391,4.99,166.32,166.29,2.2249]
[1717466770587,2.2243,166.34,166.3,2.2248]
[1717466770894,2.2242,166.35,166.3,2.2248]
[1717466771106,4.99,166.32,166.3,2.2248]
[1717466771777,2.2242,166.35,166.3,2.2248]
[1717466771778,4.99,166.33,166.3,2.2248]
[1717466772188,4.99,166.33,166.31,2.2247]
[1717466772903,4.99,166.34,166.31,2.2247]
[1717466773477,4.99,166.34,166.31,8.5535]
[1717466773673,4.99,166.35,166.31,8.5535]
[1717466773878,2.224,166.37,166.32,6.3288]
[1717466774101,7.2138,166.38,166.33,120.0]
[1717466774303,4.99,166.38,166.34,6.1207]
[1717466774471,4.99,166.38,166.35,2.2242]
[1717466774680,7.2138,166.38,166.34,8.345]
[1717466774885,7.2139,166.37,166.33,2.2244]
[1717466775338,2.2238,166.38,166.33,2.2244]
[1717466775489,2.2237,166.39,166.34,2.2243]
[1717466775693,2.2234,166.41,166.36,2.2239]
[1717466776004,6.6687,166.45,166.36,2.2239]
[1717466776005,4.4458,166.45,166.38,6.412]
[1717466776194,4.99,166.42,166.38,6.412]
[1717466776380,4.99,166.42,166.39,2.2236]
[1717466777609,4.4453,166.47,166.39,126.0254]
[1717466777920,4.99,166.44,166.4,2.2234]
[1717466778625,7.213,166.44,166.4,2.2234]
[1717466778790,4.99,166.43,166.4,2.2234]
[1717466781009,4.99,166.42,166.39,2.2236]
[1717466781329,4.99,166.41,166.39,2.2236]
[1717466781994,4.99,166.41,166.38,2.2237]
[1717466782733,6.6688,166.45,166.37,2.2238]
[1717466782904,6.6688,166.45,166.35,4.4484]
[1717466782905,4.99,166.39,166.35,2.2241]
[1717466783119,4.99,166.38,166.35,2.2241]
[1717466784208,4.99,166.38,166.36,2.224]
[1717466785545,2.2234,166.41,166.37,2.2239]
[1717466786045,4.99,166.4,166.37,2.2239]
[1717466786419,4.99,166.4,166.37,8.608]
[1717466787456,4.99,166.4,166.37,2.2239]
[1717466789049,7.2136,166.39,166.35,2.2241]
[1717466790668,7.2136,166.39,166.33,57.5412]
[1717466790669,4.99,166.39,166.36,2.224]
[1717466790825,2.2234,166.41,166.37,2.2238]
[1717466791141,2.2234,166.41,166.32,15.60097047]
[1717466791142,2.2244,166.33,166.32,8.92717047]
[1717466791347,7.2144,166.33,166.32,8.92717047]
[1717466791647,2.2246,166.33,166.28,9.2263108]
[1717466791827,7.2146,166.33,166.29,2.225]
[1717466792648,4.99,166.33,166.29,2.225]
[1717466793547,4.99,166.33,166.3,2.2248]
[1717466793922,2.2244,166.34,166.3,2.2248]
[1717466795549,2.2244,166.34,166.29,2.2249]
[1717466796137,2.2244,166.33,166.29,2.2249]
[1717466796739,2.2244,166.34,166.3,2.2248]
[1717466797655,2.2243,166.34,166.3,2.2248]
[1717466800198,2.2245,166.33,166.29,2.2249]
[1717466801003,4.4479,166.37,166.28,127.0012108]
[1717466801004,2.2243,166.35,166.28,127.0012108]
[1717466801161,2.2243,166.34,166.29,0.17]
[1717466801362,2.2243,166.34,166.28,127.0012108]
[1717466801363,2.2243,166.34,166.3,2.2248]
[1717466801574,2.2242,166.35,166.31,2.2247]
[1717466802597,2.2244,166.34,166.3,2.2248]
[1717466805010,2.2245,166.33,166.29,2.2249]
[1717466805778,2.2245,166.33,166.3,2.2248]
[1717466806410,2.2245,166.33,166.29,2.2249]
[1717466812723,4.4488,166.34,166.28,0.8168108]
[1717466812932,2.2247,166.32,166.28,0.8168108]
[1717466813101,4.449,166.33,166.28,0.8168108]
[1717466813298,2.2248,166.3,166.28,0.8168108]
[1717466814129,2.2248,166.31,166.28,0.8168108]
[1717466815019,6.5288,166.32,166.28,3.0419108]
[1717466815321,2.2245,166.33,166.28,3.0419108]
[1717466815488,2.2245,166.33,166.29,2.225]
[1717466815889,4.97,166.31,166.29,2.225]
[1717466816524,4.97,166.31,166.28,3.0419108]
[1717466819438,4.97,166.33,166.29,2.2249]
[1717466820200,2.2243,166.34,166.29,2.2249]
[1717466820405,7.1943,166.34,166.29,2.2249]
[1717466820626,2.2242,166.35,166.31,2.2246]
[1717466820814,4.97,166.34,166.31,2.2246]
[1717466821130,2.2243,166.34,166.3,2.2248]
[1717466821331,4.97,166.34,166.3,2.2248]
[1717466821634,7.1944,166.34,166.3,2.2248]
[1717466821834,7.1944,166.34,166.29,2.2249]
[1717466822519,2.2244,166.34,166.3,2.2248]
[1717466822717,7.1944,166.34,166.3,2.2248]
[1717466822937,2.2244,166.34,166.3,2.2248]
[1717466823110,7.1944,166.34,166.3,2.2248]
[1717466825001,2.2244,166.34,166.3,2.2248]
[1717466825206,7.1944,166.34,166.3,2.2248]
[1717466825510,2.2241,166.36,166.32,2.2246]
[1717466825740,2.2241,166.36,166.31,8.2441]
[1717466825947,2.224,166.37,166.32,2.2245]
[1717466826141,2.224,166.36,166.32,8.7519]
[1717466826437,7.194,166.36,166.32,8.7519]
[1717466827050,7.194,166.36,166.32,6.5274]
[1717466827350,2.2242,166.35,166.32,6.5274]
[1717466827548,7.1942,166.35,166.31,2.2247]
[1717466828643,4.97,166.35,166.31,8.3431]
[1717466828948,2.2241,166.36,166.31,8.3431]
[1717466829234,7.1941,166.36,166.31,8.3431]
[1717466831648,2.2241,166.36,166.31,8.3431]
[1717466831847,7.1941,166.36,166.31,8.3431]
[1717466832139,7.1941,166.36,166.32,2.2246]
[1717466832950,2.2241,166.36,166.32,2.2246]
[1717466833119,7.1941,166.36,166.32,2.2246]
[1717466835047,7.1941,166.36,166.32,8.279]
[1717466835409,2.2241,166.36,166.32,6.0544]
[1717466835832,7.1941,166.36,166.32,6.0544]
[1717466836825,2.2242,166.35,166.32,6.0544]